[Event "CZE-ch U12 Open 2023"]
[Site "Teplice"]
[Date "2023.03.13"]
[Round "3.9"]
[White "Sudrich, Radek"]
[Black "Migalko, Dmitriy"]
[Result "0-1"]
[ECO "B40"]
[WhiteElo "2054"]
[BlackElo "1581"]
[Annotator "TA"]
[PlyCount "114"]
[EventDate "2023.03.09"]
[EventType "swiss"]
[EventCountry "CZE"]
[SourceTitle "playchess.com"]
[Source "ChessBase"]
[SourceQuality "1"]
[TimeControl "40/5400+30:1800+30"]

{[%evp 15,113,-46,-39,-63,-52,-116,-92,-92,-65,-94,-98,-122,14,15,49,41,68,48,47,47,42,33,33,27,29,27,27,26,57,60,52,32,71,63,70,70,91,64,66,72,58,69,59,0,35,34,50,-2,-2,-31,-22,-37,-37,-54,-48,-77,-77,-82,-50,-65,-65,-65,-17,-61,-46,-45,-34,-1745,-1687,-1616,-1304,-1059,-835,-29980,-29979,-29981,-29978,-29982,-29983,-29986,-29979,-29979,-29980,-29986,-29987,-29988,-29989,-29993,-29991,-29991,-29992,-29998,-29994,-29994,-29995,-29995,-29995,-29996,-29995,-29999]} 1. e4 {[%emt 0:00:09]} c5 {[%emt 0:00:06]} 2. Nf3 {[%emt 0:00:44]} e6 {[%emt 0:00:10]} 3. d4 {[%emt 0:01:27]} cxd4 {[%emt 0:00:12]} 4. Nxd4 {[%emt 0:01:45]} Nf6 {[%emt 0:00:32]} 5. Nc3 {[%emt 0:00:42]} Nc6 {[%emt 0:00:22]} 6. Be3 {[%emt 0:01:18]} Bb4 {[%emt 0:00:37]} 7. f3 {[%emt 0:01:20]} d5 {[%emt 0:02:09]} 8. Nxc6 {[%emt 0:04:42]} bxc6 {[%emt 0:00:36]} 9. e5 {[%emt 0:00:10] 9.exd5 is the modern continuation. B45: Sicilian Four Knights.} Nd7 {[%emt 0:00:40]} 10. a3 {[%emt 0:03:10]} (10. f4 $1 $15) 10... Bxc3+ {[%emt 0:07:16]} 11. bxc3 {[%emt 0:00:11] Black is better.} O-O {[%emt 0:01:56]} 12. f4 {[%emt 0:00:50] [#]} f6 $1 {[%emt 0:00:32]} 13. Qg4 {[%emt 0:01:16]} Qe7 {[%emt 0:02:58] Black is weak on the dark squares} (13... fxe5 $17 {White must now prevent ...Nf6.} 14. Qxe6+ Kh8 15. Qxc6 (15. fxe5 $2 {too greedy.} Qh4+ 16. Kd1 Nc5 $19) 15... Rb8) 14. Qh4 $11 {[%emt 0:03:19] [#] Dodges} Qf7 $146 {[%emt 0:10:29]} ({Predecessor:} 14... Rf7 15. Bd3 g6 16. exf6 Rxf6 17. O-O e5 18. Qg5 e4 19. Be2 Rf7 20. Qxe7 Rxe7 {½-½ Capone,N (2127)-Roos,D (2097) BEL-ch U20 Elite 2012 (7)}) 15. Bd3 {[%emt 0:01:11][%csl Gd3][%cal Rh4h7]} g6 {[%emt 0:03:12]} 16. exf6 {[%emt 0:01:39]} Qxf6 {[%emt 0:00:26]} 17. Qxf6 {[%emt 0:00:20]} Rxf6 {[%emt 0:00:44]} 18. O-O {[%emt 0:00:16]} e5 {[%emt 0:03:01]} 19. fxe5 {[%emt 0:01:48]} Rxf1+ {[%emt 0:00:20]} 20. Bxf1 {[%emt 0:00:30]} Nxe5 {[%emt 0:00:40]} 21. Bd4 {[%emt 0:00:15]} Nd7 {[%emt 0:08:11]} 22. Re1 {[%emt 0:02:12]} Kf7 {[%emt 0:03:03] Dodges Re7+} 23. g3 {[%emt 0:01:33]} (23. c4 $5 {[%cal Rc4d5]}) 23... Nf8 {[%emt 0:03:05]} 24. c4 {[%emt 0:00:26]} Ne6 {[%emt 0:05:44]} 25. Ba1 {[%emt 0:01:21]} Bd7 {[%emt 0:09:33]} 26. cxd5 {[%emt 0:00:20]} cxd5 {[%emt 0:00:07]} 27. Bg2 {[%emt 0:00:06]} Rc8 {[%emt 0:00:42]} 28. Bxd5 {[%emt 0:00:21] Strongly threatening c4.} Rxc2 {[%emt 0:00:14]} 29. Rf1+ {[%emt 0:00:57]} (29. Bb3 $14 Rc8 30. Be5) 29... Ke7 {[%emt 0:00:35]} 30. Bf6+ {[%emt 0:00:50] This pair of bishops is nice.} Kd6 {[%emt 0:02:40]} 31. Bxe6 {[%emt 0:00:39]} (31. Be4 $14 Rc5 32. Rd1+ Kc7 33. Be7) 31... Bxe6 $14 {[%emt 0:00:24][%mdl 4096] Endgame KRB-KRB} 32. Rd1+ {[%emt 0:00:09]} Bd5 {[%emt 0:00:15]} 33. Be7+ {[%emt 0:00:22][%mdl 64] Deflection} Kc6 {[%emt 0:00:16]} 34. Kf1 {[%emt 0:00:50]} Rxh2 {[%emt 0:00:41] aiming for ...Rh1+.} 35. Rc1+ {[%emt 0:00:21]} Kd7 {[%emt 0:00:08]} 36. Bg5 {[%emt 0:00:28]} h6 {[%emt 0:01:29] Black is more active.} 37. Bf4 {[%emt 0:00:53]} g5 {[%emt 0:08:55]} 38. Be3 {[%emt 0:01:33]} Ke6 {[%emt 0:00:59]} (38... Ra2 $15 39. Bxa7 Rxa3) 39. Re1 {[%emt 0:00:34]} Kf5 {[%emt 0:00:42] And now ...Kg4 would win.} 40. Bxa7 {[%emt 0:00:23]} Kg4 {[%emt 0:01:19] ...Rh1+ is the strong threat.} 41. Kg1 {[%emt 0:32:21][%mdl 8192] [#] Now White is beyond hope.} (41. Re3 $15) 41... Rh1+ $1 $19 {[%emt 0:30:34]} (41... Kxg3 $2 42. Bb8+ Kf3 43. Kxh2 $18) 42. Kf2 {[%emt 0:00:10]} Rxe1 {[%emt 0:00:14]} 43. Kxe1 {[%emt 0:00:05]} Kxg3 {[%emt 0:00:03] ( -> ...h5). KB-KB} 44. Kf1 {[%emt 0:00:15]} h5 {[%emt 0:00:23] Black mates.} 45. a4 {[%emt 0:00:34]} h4 {[%emt 0:00:06]} 46. Kg1 {[%emt 0:00:31]} g4 {[%emt 0:00:35]} 47. a5 {[%emt 0:00:26]} Bb7 {[%emt 0:00:32]} 48. Bb6 {[%emt 0:00:24]} Kh3 {[%emt 0:00:16]} 49. Bc7 {[%emt 0:00:17]} g3 {[%emt 0:00:12]} 50. Bd6 {[%emt 0:00:05]} Kg4 {[%emt 0:00:13]} 51. Be5 {[%emt 0:00:44]} h3 {[%emt 0:00:10]} 52. Bxg3 {[%emt 0:00:29]} Kxg3 {[%emt 0:00:06] KB-KP} 53. a6 {[%emt 0:00:07]} h2+ {[%emt 0:00:06]} 54. Kf1 {[%emt 0:00:09]} Bxa6+ {[%emt 0:00:06]} 55. Ke1 {[%emt 0:00:06]} h1=Q+ {[%emt 0:00:05]} 56. Kd2 {[%emt 0:01:27]} Qd5+ {[%emt 0:00:13]} 57. Ke3 {[%emt 0:00:06]} Qd3# {[%emt 0:00:07] Weighted Error Value: White=0.39/Black=0.12 (very precise)} 0-1

[Event "CZE-ch U12 Open 2023"]
[Site "Teplice"]
[Date "2023.03.13"]
[Round "3.10"]
[White "Tejnor, Martin"]
[Black "Maly, Jiri"]
[Result "1/2-1/2"]
[ECO "C44"]
[WhiteElo "1360"]
[BlackElo "1520"]
[Annotator "NA RC COMBH"]
[PlyCount "54"]
[EventDate "2023.03.09"]
[EventType "swiss"]
[EventCountry "CZE"]
[SourceTitle "playchess.com"]
[Source "ChessBase"]
[SourceQuality "1"]
[TimeControl "40/5400+30:1800+30"]

1. e4 {[%emt 0:00:03]} e5 {[%emt 0:00:20]} 2. Nf3 {[%emt 0:00:20]} Nc6 {[%emt 0:00:16]} 3. d4 {[%emt 0:01:15]} exd4 {[%emt 0:00:45]} 4. Nxd4 {[%emt 0:00:02]} Nf6 {[%emt 0:00:47]} 5. Nc3 {[%emt 0:00:17]} Bb4 {[%emt 0:00:41]} 6. Nxc6 {[%emt 0:00:57]} bxc6 {[%emt 0:00:31]} 7. Bd3 {[%emt 0:01:31]} d5 {[%emt 0:01:18]} 8. exd5 {[%emt 0:00:48]} cxd5 {[%emt 0:00:42]} 9. O-O {[%emt 0:00:09]} O-O {[%emt 0:00:48]} 10. h3 {[%emt 0:02:02]} Rb8 {[%emt 0:02:40]} 11. Qf3 {[%emt 0:04:21]} Rb6 {[%emt 0:04:02]} 12. Bf4 {[%emt 0:02:27]} Bb7 {[%emt 0:02:12]} 13. Rad1 {[%emt 0:08:06]} Re8 {[%emt 0:30:16]} 14. Bf5 {[%emt 0:19:53]} Bd6 {[%emt 0:04:55]} 15. Bxd6 {[%emt 0:02:32]} Rxd6 {[%emt 0:01:37]} 16. Na4 {[%emt 0:05:30]} Ne4 {[%emt 0:15:47]} 17. Rfe1 {[%emt 0:08:31]} g6 {[%emt 0:13:59]} 18. Bxe4 {[%emt 0:01:41]} dxe4 {[%emt 0:00:20]} 19. Qe2 {[%emt 0:01:13]} Re5 {[%emt 0:01:17]} 20. Nc3 {[%emt 0:02:11]} Qe7 {[%emt 0:02:15]} 21. Qe3 {[%emt 0:03:58]} a6 {[%emt 0:00:49]} 22. Rd2 {[%emt 0:09:17]} Rxd2 {[%emt 0:03:02]} 23. Qxd2 {[%emt 0:00:11]} Qd6 {[%emt 0:01:25]} 24. Qe3 {[%emt 0:00:36]} Qc5 {[%emt 0:02:16]} 25. Qd2 {[%emt 0:00:52]} Qd6 {[%emt 0:00:56]} 26. Qe3 {[%emt 0:00:09]} Qc5 {[%emt 0:00:07]} 27. Qd2 {[%emt 0:00:16]} Qd6 {[%emt 0:00:31]} 1/2-1/2

[Event "CZE-ch U12 Open 2023"]
[Site "Teplice"]
[Date "2023.03.13"]
[Round "3.11"]
[White "Mazurek, Richard"]
[Black "Krisica, Lukas"]
[Result "1/2-1/2"]
[ECO "A30"]
[WhiteElo "1137"]
[BlackElo "1342"]
[Annotator "NA RC COMBH"]
[PlyCount "85"]
[EventDate "2023.03.09"]
[EventType "swiss"]
[EventCountry "CZE"]
[SourceTitle "playchess.com"]
[Source "ChessBase"]
[SourceQuality "1"]
[TimeControl "40/5400+30:1800+30"]

1. c4 {[%emt 0:00:34]} c5 {[%emt 0:00:58]} 2. g3 {[%emt 0:00:08]} e6 {[%emt 0:00:41]} 3. Bg2 {[%emt 0:00:50]} Nc6 {[%emt 0:01:34]} 4. Nf3 {[%emt 0:05:37]} a6 {[%emt 0:03:29]} 5. Nc3 {[%emt 0:03:18]} b6 {[%emt 0:02:16]} 6. O-O {[%emt 0:02:52]} Bb7 {[%emt 0:02:36]} 7. d3 {[%emt 0:02:47]} Nf6 {[%emt 0:03:08]} 8. b3 {[%emt 0:03:51]} d6 {[%emt 0:04:57]} 9. Bb2 {[%emt 0:05:21]} Be7 {[%emt 0:01:35]} 10. e3 {[%emt 0:04:01]} O-O {[%emt 0:04:10]} 11. Qd2 {[%emt 0:06:15]} Qc7 {[%emt 0:04:15]} 12. Rfe1 {[%emt 0:03:32]} Rac8 {[%emt 0:02:40]} 13. Rad1 {[%emt 0:03:04]} Rfe8 {[%emt 0:03:16]} 14. Re2 {[%emt 0:14:47]} h6 {[%emt 0:05:55]} 15. Qe1 {[%emt 0:04:01]} Rcd8 {[%emt 0:03:44]} 16. Red2 {[%emt 0:00:18]} Rd7 {[%emt 0:09:49]} 17. Qe2 {[%emt 0:08:56]} Red8 {[%emt 0:02:25]} 18. h3 {[%emt 0:06:00]} Qb8 {[%emt 0:06:57]} 19. Kh2 {[%emt 0:04:37]} d5 {[%emt 0:07:43]} 20. cxd5 {[%emt 0:00:29]} Nxd5 {[%emt 0:00:30]} 21. Nxd5 {[%emt 0:00:06]} Rxd5 {[%emt 0:03:41]} 22. d4 {[%emt 0:01:22]} cxd4 {[%emt 0:01:58]} 23. Nxd4 {[%emt 0:00:30]} R5d6 {[%emt 0:02:28]} 24. Nxc6 {[%emt 0:01:03]} Bxc6 {[%emt 0:01:12]} 25. Bxc6 {[%emt 0:00:32]} Rxc6 {[%emt 0:00:14]} 26. Rxd8+ {[%emt 0:00:06]} Bxd8 {[%emt 0:01:11]} 27. Qd3 {[%emt 0:00:41]} Be7 {[%emt 0:01:36]} 28. Qd7 {[%emt 0:01:41]} Rd6 {[%emt 0:01:10]} 29. Rxd6 {[%emt 0:00:36]} Qxd6 {[%emt 0:00:10]} 30. Qxd6 {[%emt 0:01:32]} Bxd6 {[%emt 0:00:11]} 31. Kg2 {[%emt 0:00:02]} f6 {[%emt 0:00:56]} 32. Kf3 {[%emt 0:00:17]} Kf7 {[%emt 0:00:09]} 33. g4 {[%emt 0:00:10]} f5 {[%emt 0:02:14]} 34. Bd4 {[%emt 0:00:17]} b5 {[%emt 0:00:38]} 35. e4 {[%emt 0:00:41]} e5 {[%emt 0:01:03]} 36. Bb6 {[%emt 0:01:00]} f4 {[%emt 0:00:33]} 37. h4 {[%emt 0:00:18]} g6 {[%emt 0:01:22]} 38. h5 {[%emt 0:00:21]} gxh5 {[%emt 0:00:20]} 39. gxh5 {[%emt 0:00:08]} Kf6 {[%emt 0:00:19]} 40. Kg4 {[%emt 0:00:29]} Ke6 {[%emt 0:01:14]} 41. Bd8 {[%emt 0:30:19]} Bc5 {[%emt 0:32:14]} 42. f3 {[%emt 0:00:58]} Bd6 {[%emt 0:00:40]} 43. Bh4 {[%emt 0:00:33]} 1/2-1/2